bitfinex/quotes_BTCUSD_20251019
["timestamp","ask_amount","ask_price","bid_price","bid_amount"]
[1760867576265,0.00216684,107750.0,107740.0,0.74612407]
[1760867576457,0.0037839,107750.0,107740.0,0.74612407]
[1760867576913,0.0037839,107750.0,107740.0,1.19041607]
[1760867577114,0.0037839,107750.0,107740.0,0.74612407]
[1760867578622,0.0037839,107750.0,107740.0,1.28482695]
[1760867578836,0.00216684,107750.0,107740.0,1.28482695]
[1760867579460,0.00216684,107750.0,107740.0,1.32100923]
[1760867579666,0.00216684,107750.0,107740.0,1.20480923]
[1760867579874,0.00216684,107750.0,107740.0,1.35376923]
[1760867580292,0.00216684,107750.0,107740.0,1.35364923]
[1760867580515,0.00216684,107750.0,107740.0,1.79794123]
[1760867580738,0.00216684,107750.0,107740.0,4.69356923]
[1760867580739,1e-08,107750.0,107740.0,4.69356923]
[1760867580945,1e-08,107750.0,107740.0,4.16862695]
[1760867581154,1e-08,107750.0,107740.0,0.72433495]
[1760867581354,1e-08,107750.0,107740.0,1.28394695]
[1760867581776,1e-08,107750.0,107740.0,0.84057495]
[1760867582179,1e-08,107750.0,107740.0,1.16962695]
[1760867582383,1e-08,107750.0,107740.0,1.16862695]
[1760867582792,1e-08,107750.0,107740.0,1.28470695]
[1760867583432,1e-08,107750.0,107740.0,1.32088923]
[1760867583633,1e-08,107750.0,107740.0,1.35416923]
[1760867584189,1e-08,107750.0,107740.0,1.69316923]
[1760867584593,1e-08,107750.0,107740.0,1.20406695]
[1760867584810,1e-08,107750.0,107740.0,1.31882695]
[1760867585348,1e-08,107750.0,107740.0,4.69500923]
[1760867585618,0.18566012,107740.0,107710.0,0.00014789]
[1760867585765,1.17417642,107720.0,107710.0,0.00014789]
[1760867586141,0.62007742,107720.0,107710.0,0.11566789]
[1760867586356,0.34,107720.0,107710.0,0.12723468]
[1760867586563,0.52565523,107730.0,107710.0,0.12723468]
[1760867586775,0.52565523,107730.0,107710.0,0.01171468]
[1760867586776,0.52566654,107720.0,107710.0,0.01171468]
[1760867587012,0.52566654,107720.0,107710.0,0.11562789]
[1760867587228,0.52566654,107720.0,107710.0,0.00014789]
[1760867587673,1.17417642,107720.0,107710.0,0.00014789]
[1760867588098,1.17417642,107720.0,107710.0,0.11546789]
[1760867588963,0.554099,107720.0,107710.0,0.11546789]
[1760867589177,0.554099,107720.0,107710.0,0.14892802]
[1760867589394,0.554099,107720.0,107710.0,0.3346118]
[1760867590037,0.554099,107740.0,107730.0,0.1856493]
[1760867590252,0.554099,107740.0,107730.0,0.3006893]
[1760867590478,0.554099,107740.0,107730.0,0.34932343]
[1760867590664,1e-08,107750.0,107740.0,0.17563207]
[1760867590878,1e-08,107750.0,107740.0,0.00046396]
[1760867591088,0.18561485,107750.0,107740.0,0.11542396]
[1760867591311,0.18561485,107750.0,107710.0,0.22857598]
[1760867591312,0.09441089,107750.0,107710.0,0.00014789]
[1760867591523,0.62007742,107720.0,107710.0,0.00014789]
[1760867591748,1.17417642,107720.0,107710.0,0.00014789]
[1760867591958,0.18566654,107720.0,107710.0,0.00014789]
[1760867592149,0.18566654,107720.0,107710.0,0.11558789]
[1760867592150,0.28007742,107720.0,107710.0,0.11558789]
[1760867592341,0.28007742,107720.0,107710.0,0.12714668]
[1760867592521,0.83417642,107720.0,107710.0,0.12714668]
[1760867592881,0.28007742,107720.0,107710.0,0.12714668]
[1760867593093,0.2816949,107720.0,107710.0,0.12714668]
[1760867594425,0.2816949,107720.0,107710.0,0.12814668]
[1760867594602,0.09602836,107720.0,107710.0,0.12814668]
[1760867594809,0.09602836,107720.0,107710.0,0.31335046]
[1760867594810,0.00161748,107720.0,107710.0,0.31335046]
[1760867594962,0.18566386,107730.0,107710.0,0.31335046]
[1760867595980,0.18566386,107730.0,107710.0,0.31235046]
[1760867596616,0.18566386,107730.0,107720.0,0.18566654]
[1760867596816,0.18566386,107730.0,107720.0,0.0498017]
[1760867597390,0.18565342,107750.0,107720.0,0.23546824]
[1760867597391,1e-08,107750.0,107720.0,0.23546824]
[1760867597596,1e-08,107750.0,107730.0,0.18564885]
[1760867597597,0.09580877,107750.0,107730.0,0.18564885]
[1760867597716,0.00139789,107750.0,107740.0,0.30023207]
[1760867597919,1e-08,107750.0,107740.0,0.30023207]
[1760867598149,1e-08,107750.0,107710.0,0.00014789]
[1760867598150,0.18566654,107720.0,107710.0,0.00014789]
[1760867598349,0.3162597,107720.0,107710.0,0.11494789]
[1760867598593,0.62007742,107720.0,107710.0,0.11494789]
[1760867598838,0.19491561,107740.0,107710.0,0.00014789]
[1760867599052,0.18566654,107720.0,107710.0,0.00014789]
[1760867599482,0.28007742,107720.0,107710.0,0.10494789]
[1760867599924,0.18569374,107710.0,107690.0,0.19535931]
[1760867600125,0.18584215,107710.0,107690.0,0.23439736]
[1760867600246,0.18584215,107710.0,107700.0,0.30042102]
[1760867600448,0.00014841,107710.0,107700.0,0.30042102]
[1760867601336,0.00014841,107710.0,107700.0,0.30034102]
[1760867601881,0.00014841,107710.0,107700.0,0.30026102]
[1760867602088,0.00176571,107710.0,107700.0,0.35907086]
[1760867602533,0.09617659,107710.0,107700.0,0.002]
[1760867602748,0.65804265,107710.0,107700.0,0.11668]
[1760867602959,0.62186037,107710.0,107700.0,0.11668]
[1760867603607,0.62186037,107710.0,107700.0,0.11468]
[1760867604646,0.53007157,107710.0,107700.0,0.11468]
[1760867605504,0.53007157,107710.0,107700.0,0.12618355]
[1760867606888,0.43441088,107710.0,107700.0,0.11468]
[1760867607090,0.19491561,107740.0,107720.0,0.18566654]
[1760867607294,0.00139788,107730.0,107720.0,0.18566654]
[1760867607522,0.00139788,107730.0,107720.0,0.29970654]
[1760867607740,0.00139788,107730.0,107720.0,0.3482441]
[1760867608369,1e-08,107750.0,107740.0,0.18563207]
[1760867608572,0.00154685,107750.0,107740.0,0.29951207]
[1760867608794,0.00154684,107750.0,107740.0,0.29951207]
[1760867609000,0.00014896,107750.0,107740.0,0.34802674]
[1760867609819,0.00154684,107750.0,107740.0,0.23414674]
[1760867610032,0.00014896,107750.0,107740.0,0.44239762]
[1760867610717,0.00014896,107750.0,107740.0,0.44339762]
[1760867610948,0.00014896,107750.0,107740.0,0.32955762]
[1760867611187,0.00014896,107750.0,107740.0,0.39372295]
[1760867611404,0.00014896,107750.0,107740.0,0.39472295]
[1760867612804,0.00014896,107750.0,107740.0,3.39472295]
[1760867614222,1e-08,107750.0,107740.0,4.512085]
[1760867614437,1e-08,107750.0,107740.0,4.60649142]
[1760867614649,1e-08,107760.0,107750.0,3.18561484]
[1760867614856,1e-08,107760.0,107750.0,3.28002572]
[1760867615717,1e-08,107760.0,107750.0,4.61290172]
[1760867616537,1e-08,107760.0,107750.0,4.75938172]
[1760867616745,1e-08,107760.0,107750.0,4.85378814]
[1760867616965,1e-08,107760.0,107750.0,4.85578814]
[1760867617599,0.0004,107830.0,107820.0,0.18549434]
[1760867617817,0.18637387,107830.0,107820.0,0.888584]
[1760867618052,0.18637387,107830.0,107820.0,1.09603042]
[1760867618262,0.00089674,107830.0,107820.0,1.28152476]
[1760867618894,0.18637387,107830.0,107820.0,1.28152476]
[1760867619111,0.18637387,107830.0,107820.0,1.16848476]
[1760867619322,0.00089674,107830.0,107820.0,1.28152476]
[1760867619756,0.00089674,107830.0,107820.0,1.82022764]
[1760867620174,0.00089674,107830.0,107820.0,1.26289564]
[1760867620374,0.00089674,107830.0,107820.0,1.37589564]
[1760867620576,0.00089674,107830.0,107820.0,1.82018764]
[1760867621149,0.00089674,107830.0,107820.0,1.16848476]
[1760867621354,0.00251249,107830.0,107820.0,1.28148476]
[1760867621557,0.00251249,107830.0,107820.0,1.82018764]
[1760867622170,0.00251249,107830.0,107820.0,4.70818764]
[1760867622392,0.00251249,107830.0,107820.0,4.82118764]
[1760867622834,1e-08,107830.0,107820.0,4.82018764]
[1760867623053,0.0004,107840.0,107830.0,0.18547713]
[1760867623260,0.00054895,107840.0,107830.0,1.35698105]
[1760867623687,0.00338796,107840.0,107830.0,4.35698105]
[1760867624524,0.00338796,107840.0,107830.0,4.80127305]
[1760867624749,0.00338796,107840.0,107830.0,4.24398105]
[1760867624962,0.00338796,107840.0,107830.0,4.39038105]
[1760867625634,0.00338796,107840.0,107830.0,4.24398105]
[1760867625885,0.00338796,107840.0,107830.0,4.39138105]
[1760867626703,0.0050034,107840.0,107830.0,4.39138105]
[1760867626910,0.0050034,107840.0,107830.0,4.83567305]
[1760867627065,0.0050034,107840.0,107830.0,4.68927305]
[1760867627237,0.0050034,107840.0,107830.0,5.6129951]
[1760867627653,0.0050034,107840.0,107830.0,5.1687031]
[1760867627849,0.0050034,107840.0,107830.0,5.6129951]
[1760867628082,0.0050034,107840.0,107830.0,4.24498105]
[1760867628654,0.00338796,107840.0,107830.0,4.24498105]
[1760867628858,0.00338796,107840.0,107830.0,4.39130105]
[1760867629245,0.00338796,107840.0,107830.0,4.27838105]
[1760867629449,0.00338796,107840.0,107830.0,3.35639705]
[1760867629591,0.00338796,107840.0,107830.0,4.24498105]
[1760867629796,0.00338796,107840.0,107830.0,1.24498105]
[1760867630037,0.00338796,107840.0,107830.0,0.46931705]
[1760867630245,0.00338796,107840.0,107830.0,1.35790105]
[1760867630455,0.00338796,107840.0,107830.0,1.24498105]
[1760867630901,0.00338796,107840.0,107830.0,1.35790105]
[1760867631102,0.00338796,107840.0,107830.0,1.35690105]
[1760867631358,0.00338796,107840.0,107830.0,1.24498105]
[1760867631505,0.1888479,107840.0,107830.0,1.26349017]
[1760867631765,0.00338796,107840.0,107830.0,1.26349017]
[1760867631888,0.00478584,107840.0,107830.0,1.26249017]
[1760867632101,0.00338796,107840.0,107830.0,1.35790105]
[1760867632330,0.1888479,107840.0,107830.0,0.889584]
[1760867632562,0.1888479,107840.0,107830.0,1.002504]
[1760867632563,0.00338796,107840.0,107830.0,1.002504]
[1760867632800,0.00338796,107840.0,107830.0,1.18798113]
[1760867633421,0.00338796,107840.0,107830.0,0.74364913]
[1760867633617,0.00338796,107840.0,107830.0,1.18794113]
[1760867633810,0.00500345,107840.0,107830.0,1.28234755]
[1760867634010,0.00500345,107840.0,107830.0,1.28134755]
[1760867634429,0.00500345,107840.0,107830.0,1.28234755]
[1760867634857,0.00500345,107840.0,107830.0,0.39376355]
[1760867635005,0.00500345,107840.0,107830.0,1.28234755]
[1760867635201,0.00500345,107840.0,107830.0,1.28134755]
[1760867635414,0.00927557,107810.0,107760.0,0.01927987]
[1760867635614,0.18556318,107780.0,107770.0,0.11288]
[1760867635820,0.19487278,107770.0,107720.0,0.0002]
[1760867636075,0.00139788,107760.0,107740.0,3.0]
[1760867636285,0.18697838,107770.0,107750.0,0.11288]
[1760867636492,0.00139788,107760.0,107750.0,0.29849484]
[1760867636692,0.00139788,107760.0,107750.0,0.29899158]
[1760867638138,0.00139788,107770.0,107760.0,0.18559463]
[1760867638340,0.18697828,107770.0,107750.0,0.29899158]
[1760867638543,0.1855804,107770.0,107760.0,0.18559762]
[1760867638770,0.18559762,107760.0,107750.0,0.23550203]
[1760867639129,0.18559762,107760.0,107750.0,0.34838203]
[1760867639351,0.1855804,107770.0,107750.0,0.34838203]
[1760867639542,0.00139788,107760.0,107750.0,0.23550203]
[1760867639741,0.00139788,107760.0,107750.0,0.34838203]
[1760867640592,0.62925221,107780.0,107760.0,0.18558859]
[1760867640593,0.00139788,107770.0,107760.0,0.18558859]
[1760867640814,0.00139788,107770.0,107760.0,0.23898565]
[1760867641073,0.00175298,107770.0,107760.0,0.23898565]
[1760867641724,0.18733338,107770.0,107760.0,0.11288]
[1760867641938,0.1859355,107770.0,107760.0,0.11288]
[1760867642800,0.1859355,107770.0,107760.0,0.18559762]
[1760867643022,0.1859355,107770.0,107760.0,0.11288]
[1760867643436,0.1859355,107770.0,107760.0,0.29847762]
[1760867643681,0.1859355,107770.0,107760.0,0.35187559]
[1760867643895,0.0003551,107770.0,107760.0,0.35187559]
[1760867644119,0.18733338,107770.0,107760.0,0.35187559]
[1760867644340,0.1859355,107770.0,107760.0,0.35187559]
[1760867644552,0.1859355,107770.0,107750.0,0.23550203]
[1760867644553,0.52559762,107760.0,107750.0,0.00049674]
[1760867644755,3.66619077,107760.0,107750.0,0.00049674]
[1760867644979,3.66619077,107760.0,107750.0,0.11333674]
[1760867645622,3.34,107720.0,107700.0,0.07]
[1760867645831,0.62149254,107710.0,107700.0,0.07014896]
[1760867646057,0.62009466,107710.0,107700.0,0.07014896]
[1760867646481,0.62009466,107710.0,107700.0,0.18298896]
[1760867646702,0.62009466,107710.0,107700.0,0.07014896]
[1760867646914,0.62009466,107710.0,107700.0,0.18298896]
[1760867647755,0.66627693,107710.0,107700.0,1e-08]
[1760867648173,0.62009466,107710.0,107700.0,1e-08]
[1760867648590,0.28009466,107710.0,107700.0,1e-08]
[1760867649002,0.28009466,107710.0,107700.0,0.11284001]
[1760867649003,0.62009466,107710.0,107700.0,0.11284001]
[1760867649198,0.52568378,107710.0,107700.0,0.12441183]
[1760867649432,0.62009466,107710.0,107700.0,0.12441183]
[1760867649649,0.28009466,107710.0,107700.0,0.01157183]
[1760867649854,0.28009466,107710.0,107700.0,0.11284001]
[1760867650059,0.28109466,107710.0,107700.0,0.11284001]
[1760867650505,0.28009466,107710.0,107700.0,1e-08]
[1760867650727,0.28109466,107710.0,107700.0,0.11284001]
[1760867651118,0.31727694,107710.0,107700.0,0.11284001]
[1760867651417,0.36857129,107710.0,107700.0,0.11284001]
[1760867651632,0.65727694,107710.0,107700.0,0.11284001]
[1760867651837,0.62109466,107710.0,107700.0,0.11284001]
[1760867651962,0.62109466,107710.0,107700.0,1e-08]
[1760867652161,0.62109466,107710.0,107700.0,0.11284001]
[1760867652445,0.001,107710.0,107700.0,0.29854103]
[1760867652669,0.00239788,107710.0,107700.0,0.11284001]
[1760867652877,0.18808166,107710.0,107700.0,0.11284001]
[1760867653086,0.18668378,107710.0,107700.0,0.11284001]
[1760867653314,0.18568378,107710.0,107700.0,0.11284001]
[1760867653523,0.18568378,107710.0,107700.0,0.21584441]
[1760867653731,0.18568378,107710.0,107700.0,0.29854103]
[1760867653944,0.18568378,107710.0,107700.0,0.11284001]
[1760867654354,0.18568378,107710.0,107700.0,0.29854103]
[1760867654565,0.18568378,107710.0,107700.0,0.11284001]
[1760867654774,0.18566837,107720.0,107700.0,0.32868441]
[1760867654985,0.00139788,107710.0,107700.0,0.21584441]
[1760867655199,0.00139788,107710.0,107700.0,0.32868441]
[1760867655414,0.18704718,107730.0,107720.0,0.18566654]
[1760867655629,0.1856493,107730.0,107720.0,0.11284]
[1760867655858,0.18563207,107740.0,107730.0,0.1856493]
[1760867656065,0.09441088,107740.0,107730.0,0.1856493]
[1760867656273,0.18559762,107760.0,107740.0,0.18562876]
[1760867656520,0.2800085,107760.0,107750.0,0.11284]
[1760867656694,0.2800085,107760.0,107750.0,0.11184]
[1760867656961,0.2800085,107760.0,107750.0,0.123024]
[1760867657180,0.18563342,107740.0,107720.0,0.19749243]
[1760867657394,0.18563342,107740.0,107730.0,0.11284]
[1760867657606,0.18563342,107740.0,107720.0,0.19749243]
[1760867657607,0.18570102,107700.0,107690.0,0.00287821]
[1760867657844,0.2801119,107700.0,107690.0,0.11582662]
[1760867658678,0.2801119,107700.0,107690.0,0.00302662]
[1760867658879,0.2801119,107700.0,107690.0,0.11582662]
[1760867659311,0.2801119,107700.0,107690.0,0.12740928]
[1760867659530,0.2801119,107700.0,107690.0,0.11582662]
[1760867661692,0.2887582,107700.0,107690.0,0.00302662]
[1760867661895,0.2887582,107700.0,107690.0,0.11582662]
[1760867663477,0.2887582,107700.0,107690.0,0.00302662]
[1760867663673,0.2887582,107700.0,107690.0,0.11582662]
[1760867666505,0.29037611,107700.0,107690.0,0.11582662]
[1760867667917,0.29037611,107700.0,107690.0,0.00302662]
[1760867668106,0.29037611,107700.0,107690.0,0.11574662]
[1760867670394,0.10467509,107700.0,107690.0,0.11574662]
[1760867670630,0.2887582,107700.0,107690.0,0.11574662]
[1760867670842,0.194949,107730.0,107710.0,0.18567579]
[1760867671027,0.18706442,107720.0,107700.0,0.18569098]
[1760867671255,0.18566654,107720.0,107710.0,0.11268]
[1760867671457,0.28935988,107730.0,107710.0,0.29836108]
[1760867671666,0.18706442,107720.0,107710.0,0.29836108]
[1760867671892,0.28935988,107730.0,107710.0,0.29836108]
[1760867672069,0.18706442,107720.0,107710.0,0.29836108]
[1760867672316,0.28006018,107730.0,107720.0,0.18566654]
[1760867672522,0.18566654,107720.0,107710.0,0.32889957]
[1760867673762,0.28869082,107730.0,107710.0,0.32889957]
[1760867673963,0.00301541,107720.0,107710.0,0.32889957]
[1760867674389,0.00161753,107720.0,107710.0,0.32889957]
[1760867675025,0.00161753,107720.0,107710.0,0.21621957]
[1760867675243,0.00161753,107720.0,107710.0,0.32885957]
[1760867675585,0.00161753,107720.0,107710.0,0.21621957]
[1760867675792,0.00161753,107720.0,107710.0,0.32885957]
[1760867678647,0.00161753,107720.0,107710.0,0.21621957]
[1760867678918,0.00161753,107720.0,107710.0,0.29824108]
[1760867679051,0.00301541,107720.0,107710.0,0.29824108]
[1760867679480,0.00161753,107720.0,107710.0,0.29824108]
[1760867682454,0.18570102,107700.0,107690.0,0.00302662]
[1760867682656,0.19498192,107720.0,107690.0,0.12483253]
[1760867682860,0.00139788,107710.0,107690.0,0.31467022]
[1760867683141,0.18708166,107710.0,107690.0,0.31467022]
[1760867683341,0.18568378,107710.0,107700.0,0.18570102]
[1760867683550,0.18568378,107710.0,107690.0,0.31467022]
[1760867684064,0.1870989,107700.0,107690.0,0.01643855]
[1760867684207,0.18570102,107700.0,107690.0,0.00302662]
[1760867684612,0.18570102,107700.0,107690.0,0.11650662]
[1760867685275,0.18570102,107700.0,107690.0,0.11550662]
[1760867687149,0.28172961,107700.0,107690.0,0.00302662]
[1760867687377,0.28172961,107700.0,107690.0,0.11546662]
[1760867687597,0.71465322,107700.0,107690.0,1e-08]
[1760867688031,0.29011189,107700.0,107690.0,1e-08]
[1760867688246,0.2801119,107700.0,107690.0,1e-08]
[1760867688969,0.2811119,107700.0,107690.0,1e-08]
[1760867689404,0.2801119,107700.0,107690.0,1e-08]
[1760867691032,0.2811119,107700.0,107690.0,1e-08]
[1760867691465,0.2811119,107700.0,107690.0,0.18571827]
[1760867691679,0.2801119,107700.0,107690.0,0.23410336]
[1760867692514,0.2801119,107700.0,107690.0,1e-08]
[1760867693173,0.28172974,107700.0,107690.0,1e-08]
[1760867693803,0.00161784,107700.0,107690.0,0.18571827]
[1760867694882,0.00161784,107700.0,107690.0,0.29803827]
[1760867695515,0.00161784,107700.0,107690.0,0.29903827]
[1760867695752,0.00161784,107700.0,107690.0,0.34751536]
[1760867696542,0.00161784,107700.0,107690.0,0.44192624]
[1760867696769,0.00151934,107700.0,107690.0,0.44192624]
[1760867698393,0.00291722,107700.0,107690.0,0.18671827]
[1760867698595,0.19495193,107720.0,107700.0,0.18569617]
[1760867698772,0.28936281,107720.0,107710.0,0.11224]
[1760867699762,0.18566654,107720.0,107710.0,0.29792378]
[1760867700172,0.18565003,107730.0,107710.0,0.29792378]
[1760867700377,0.28006018,107730.0,107710.0,0.34628578]
[1760867700781,0.28006018,107730.0,107720.0,0.18566654]
[1760867700983,0.19490877,107750.0,107730.0,0.1856493]
[1760867701192,0.18563207,107740.0,107730.0,0.1856493]
[1760867701400,0.29799596,107750.0,107730.0,0.2978093]
[1760867701606,0.29798428,107750.0,107730.0,0.34708522]
[1760867701829,0.2887041,107750.0,107730.0,0.34708522]
[1760867702241,0.18563207,107740.0,107730.0,0.04927592]
[1760867702449,0.0001489,107750.0,107740.0,0.18563207]
[1760867703276,0.0001489,107750.0,107740.0,0.28004295]
[1760867703689,0.0001489,107750.0,107740.0,0.39216295]
[1760867704104,0.00176586,107750.0,107740.0,0.39216295]
[1760867704304,0.00176586,107750.0,107740.0,0.45094418]
[1760867704732,0.00176586,107750.0,107740.0,3.79094418]
[1760867704938,0.00029347,107750.0,107740.0,3.79994417]
[1760867705141,0.0003551,107770.0,107760.0,0.18559762]
[1760867705350,0.0003551,107770.0,107760.0,0.29767762]
[1760867705565,0.0003551,107770.0,107760.0,0.34600543]
[1760867705984,0.1859355,107770.0,107760.0,0.04832781]
[1760867706190,0.0001551,107770.0,107760.0,0.29767762]
[1760867707197,0.0001551,107770.0,107760.0,0.29867762]
[1760867710598,0.0001551,107770.0,107760.0,0.18659762]
[1760867710809,0.1857355,107770.0,107760.0,0.001]
[1760867711009,0.1857355,107770.0,107760.0,0.11292]
[1760867711146,0.28014638,107770.0,107760.0,0.11292]
[1760867711673,0.28014638,107770.0,107760.0,0.001]
[1760867712642,0.09456598,107770.0,107760.0,0.18659762]
[1760867712847,0.0001551,107770.0,107760.0,0.18659762]
[1760867713066,0.00177191,107770.0,107760.0,0.18659762]
[1760867714724,0.18614301,107790.0,107760.0,0.18659762]
[1760867714950,0.00049652,107790.0,107770.0,0.29741927]
[1760867715088,0.18604348,107790.0,107770.0,0.29741927]
[1760867715287,0.00139788,107780.0,107770.0,0.29741927]
[1760867715492,0.00462995,107780.0,107770.0,0.29741927]
[1760867715832,0.00323207,107780.0,107770.0,0.39183015]
[1760867716033,0.00323207,107780.0,107770.0,0.45553501]
[1760867716982,0.00323207,107780.0,107770.0,0.79553501]
[1760867717233,0.00323207,107780.0,107770.0,0.79653501]
[1760867717608,0.00323207,107780.0,107770.0,0.79553501]
[1760867717977,0.00323207,107780.0,107770.0,0.79653501]
[1760867718555,0.19193145,107810.0,107800.0,0.18552875]
[1760867718760,0.19208037,107810.0,107800.0,0.31588163]
[1760867720009,0.18553357,107800.0,107780.0,0.18555983]
[1760867720210,0.18553357,107800.0,107790.0,0.29726596]
[1760867721594,0.27994445,107800.0,107790.0,0.11172]
[1760867722170,0.28156099,107800.0,107790.0,0.11172]
[1760867722374,0.09441088,107800.0,107790.0,0.32709413]
[1760867722548,0.00014892,107810.0,107800.0,0.18552875]
[1760867722752,0.0945598,107810.0,107800.0,0.18552875]
[1760867722960,0.00014892,107810.0,107800.0,0.18552875]
[1760867724216,0.00121375,107810.0,107800.0,0.27993963]
[1760867724419,1e-08,107810.0,107800.0,3.68064301]
[1760867724658,1e-08,107810.0,107800.0,3.71682529]
[1760867725680,1e-08,107810.0,107800.0,4.50257152]
[1760867725837,1e-08,107810.0,107800.0,4.50357152]
[1760867726244,1e-08,107810.0,107800.0,4.54701151]
[1760867726615,0.0004,107840.0,107830.0,0.18547713]
[1760867726817,0.0004,107840.0,107830.0,0.76854375]
[1760867727256,0.0004,107840.0,107830.0,0.03709574]
[1760867727429,0.0004,107840.0,107830.0,0.29699713]
[1760867728249,0.18585994,107840.0,107830.0,0.29699713]
[1760867728419,0.18585994,107840.0,107820.0,0.18548023]
[1760867728624,0.18547713,107830.0,107820.0,0.18548023]
[1760867728806,0.18547713,107830.0,107820.0,0.33499836]
[1760867729360,0.27988801,107830.0,107800.0,0.19318937]
[1760867729558,0.18550032,107820.0,107810.0,0.29695154]
[1760867730201,0.27988801,107830.0,107810.0,0.29695154]
[1760867730403,0.18549434,107820.0,107810.0,0.11144]
[1760867730530,0.18549434,107820.0,107810.0,0.14190294]
[1760867730731,0.27988801,107830.0,107810.0,0.32741448]
[1760867730931,0.27988801,107830.0,107810.0,0.32841448]
[1760867731333,0.19513293,107840.0,107830.0,0.18547713]
[1760867731534,0.0004,107840.0,107830.0,0.29691713]
[1760867731736,0.0004,107840.0,107830.0,0.34515828]
[1760867731974,0.18585994,107840.0,107830.0,0.34515828]
[1760867732156,0.00146438,107840.0,107830.0,0.34515828]
[1760867733071,0.00927557,107810.0,107760.0,0.0085973]
[1760867733282,0.09441088,107800.0,107770.0,3.11136]
[1760867733524,0.09441088,107800.0,107770.0,0.29693907]
[1760867733729,0.18551222,107810.0,107780.0,0.18556224]
[1760867733936,0.18552921,107800.0,107790.0,0.11136]
[1760867734339,0.18554596,107790.0,107780.0,0.00057513]
[1760867734549,0.1855688,107780.0,107760.0,0.28977285]
[1760867734776,0.18554596,107790.0,107770.0,0.29689993]
[1760867734950,0.18554596,107790.0,107770.0,0.35556721]
[1760867735274,0.19480564,107800.0,107780.0,0.18582932]
[1760867735418,0.28921606,107800.0,107780.0,0.18556318]
[1760867735628,0.19481156,107820.0,107790.0,0.29686596]
[1760867735832,0.19476541,107830.0,107800.0,0.18552875]
[1760867736047,0.09441088,107830.0,107810.0,0.29683115]
[1760867736387,0.18549434,107820.0,107810.0,0.29683154]
[1760867736618,0.27988873,107830.0,107810.0,0.29683154]
[1760867736814,0.18547713,107830.0,107820.0,0.18549434]
[1760867737497,0.11932255,107840.0,107820.0,0.29677434]
[1760867737715,0.18547713,107830.0,107820.0,0.34500293]
[1760867737873,0.18547713,107830.0,107820.0,0.23372293]
[1760867738083,0.18547713,107830.0,107820.0,0.34500293]
[1760867738312,0.18547713,107830.0,107820.0,0.23372293]
[1760867738522,0.18547713,107830.0,107820.0,0.34496293]
[1760867738935,0.00070965,107830.0,107820.0,0.34496293]
[1760867741477,0.00070965,107830.0,107820.0,0.34488293]
[1760867741892,0.00070965,107830.0,107820.0,0.34588293]
[1760867742097,0.00070965,107830.0,107820.0,0.23472293]
[1760867742347,0.18618678,107830.0,107820.0,0.001]
[1760867742551,0.00070965,107830.0,107820.0,0.29765434]
[1760867742960,0.00070965,107830.0,107820.0,0.18649434]
[1760867743168,0.00070965,107830.0,107810.0,0.18551154]
[1760867743169,0.18618678,107830.0,107810.0,0.18551154]
[1760867743397,0.19473508,107840.0,107820.0,0.29661434]
[1760867743619,0.18547713,107830.0,107820.0,0.29661434]
[1760867743828,0.18709312,107830.0,107820.0,0.18549434]
[1760867744029,0.18709312,107830.0,107820.0,0.29661434]
[1760867744605,0.00161599,107830.0,107820.0,0.29661434]
[1760867745132,0.00161599,107830.0,107820.0,0.3486301]
[1760867746271,0.00161599,107830.0,107820.0,0.3485501]
[1760867746874,0.18709312,107830.0,107820.0,0.3485501]
[1760867747135,0.00161599,107830.0,107820.0,0.3485501]
[1760867747289,0.00161599,107830.0,107820.0,0.2375101]
[1760867747508,0.00161599,107830.0,107820.0,0.3485501]
[1760867747704,0.18709312,107830.0,107820.0,0.3485101]
[1760867748113,0.18547713,107830.0,107820.0,0.3485101]
[1760867748309,0.18547713,107830.0,107820.0,0.29649434]
[1760867750461,0.18547713,107830.0,107820.0,0.29641434]
[1760867750681,0.28914596,107840.0,107820.0,0.29641434]
[1760867750859,0.10228461,107840.0,107820.0,0.29641434]
[1760867751065,0.2877467,107840.0,107820.0,0.29641434]
[1760867751280,0.27988801,107830.0,107810.0,0.18551154]
[1760867751657,0.27988801,107830.0,107820.0,0.11092]
[1760867752077,0.18549434,107820.0,107810.0,0.18551092]
[1760867752464,0.18549434,107820.0,107810.0,0.29639092]
[1760867752840,0.18549434,107820.0,107800.0,0.19480518]
[1760867752841,0.18551154,107810.0,107790.0,0.19482325]
[1760867753066,0.18551154,107810.0,107790.0,0.19497217]
[1760867753220,0.18552875,107800.0,107790.0,0.18569488]
[1760867753545,0.18552875,107800.0,107790.0,0.03820254]
[1760867753700,0.18552875,107800.0,107790.0,0.11098892]
[1760867753701,0.52552875,107800.0,107790.0,0.11098892]
[1760867754480,0.52714492,107800.0,107790.0,0.00014892]
[1760867754658,0.6215558,107800.0,107790.0,0.11098892]
[1760867755208,0.70226253,107800.0,107790.0,0.11098892]
[1760867755737,0.6215558,107800.0,107790.0,0.11098892]
[1760867756320,0.6215558,107800.0,107790.0,0.11094892]
[1760867756686,0.63057196,107800.0,107790.0,0.11094892]
[1760867757710,0.63057196,107800.0,107790.0,0.00014892]
[1760867758137,0.63057196,107800.0,107790.0,0.11090892]
[1760867759340,0.63057196,107800.0,107700.0,0.0002]
[1760867759341,0.18567163,107720.0,107700.0,0.0002]
[1760867759572,0.18568378,107710.0,107700.0,0.00069652]
[1760867759785,0.18567163,107720.0,107710.0,0.00177662]
[1760867759991,0.18567163,107720.0,107700.0,0.11141652]
[1760867760197,0.18568378,107710.0,107700.0,0.14205858]
[1760867760406,0.18567268,107720.0,107700.0,0.3280539]
[1760867760517,0.18568378,107710.0,107700.0,0.32989174]
[1760867760719,0.18568378,107710.0,107700.0,0.14419072]
[1760867760925,0.18568378,107710.0,107700.0,0.14452837]
[1760867761342,0.18567268,107720.0,107700.0,0.33022939]
[1760867761653,0.18567268,107720.0,107700.0,0.3287596]
[1760867761938,0.18567268,107720.0,107710.0,0.00177662]
[1760867762335,0.63288163,107720.0,107710.0,0.00177662]
[1760867762570,0.18568378,107710.0,107700.0,0.00069652]
[1760867762769,0.31627694,107710.0,107700.0,0.00069652]
[1760867763569,0.31627694,107710.0,107700.0,0.00169652]
[1760867763807,0.31627694,107710.0,107660.0,8e-05]
[1760867763808,0.18575276,107670.0,107660.0,8e-05]
[1760867764000,0.18573551,107680.0,107660.0,0.32093522]
[1760867764210,0.62937884,107710.0,107680.0,0.18573551]
[1760867764359,0.28937938,107710.0,107690.0,0.29635826]
[1760867764554,0.20373622,107730.0,107710.0,0.18568378]
[1760867764762,0.2981471,107730.0,107720.0,0.11064]
[1760867765510,0.63976456,107730.0,107720.0,0.11064]
[1760867765722,0.29976456,107730.0,107720.0,0.1107889]
[1760867766116,0.63976456,107730.0,107720.0,0.1107489]
[1760867766919,0.64076456,107730.0,107720.0,0.1107489]
[1760867767379,0.72434227,107730.0,107720.0,0.0001489]
[1760867767640,0.64076456,107730.0,107720.0,0.1107489]
[1760867768036,0.67694684,107730.0,107720.0,0.0001489]
[1760867768175,0.67694684,107730.0,107720.0,0.1107089]